[Event "POL-chT 2 Liga 2019"]
[Site "Poronin"]
[Date "2019.09.10"]
[Round "4.4"]
[White "Punin, Andrii"]
[Black "Szoen, Dariusz"]
[Result "1/2-1/2"]
[ECO "C18"]
[WhiteElo "2325"]
[BlackElo "2415"]
[Annotator "NA"]
[PlyCount "118"]
[EventDate "2019.09.07"]
[EventType "team-tourn"]
[EventCountry "POL"]
[SourceTitle "playchess.com"]
[Source "ChessBase"]
[SourceQuality "1"]
[TimeControl "40/5400+30:1800+30"]

1. e4 {[%emt 0:00:47]} e6 {[%emt 0:00:17]} 2. d4 {[%emt 0:00:07]} d5 {[%emt 0:00:04]} 3. Nc3 {[%emt 0:00:05]} Bb4 {[%emt 0:00:04]} 4. e5 {[%emt 0:00:09]} c5 {[%emt 0:00:05]} 5. a3 {[%emt 0:00:06]} Bxc3+ {[%emt 0:00:18]} 6. bxc3 {[%emt 0:00:07]} Qa5 {[%emt 0:00:02]} 7. Bd2 {[%emt 0:00:12]} Qa4 {[%emt 0:00:03]} 8. Qg4 {[%emt 0:00:12]} Kf8 {[%emt 0:00:04]} 9. Nf3 {[%emt 0:00:13]} Nc6 {[%emt 0:00:09]} 10. Be2 {[%emt 0:00:20]} Nge7 {[%emt 0:02:18]} 11. h3 {[%emt 0:02:41]} Qxc2 {[%emt 0:03:26]} 12. dxc5 {[%emt 0:00:11]} Ng6 {[%emt 0:03:48]} 13. Rc1 {[%emt 0:06:30]} Qb2 {[%emt 0:05:21]} 14. Qg5 {[%emt 0:03:23]} Qxa3 {[%emt 0:05:22]} 15. Be3 {[%emt 0:04:19]} h6 {[%emt 0:04:18]} 16. Qg3 {[%emt 0:03:06]} Nce7 {[%emt 0:13:24]} 17. Nd4 {[%emt 0:04:03]} Nf5 {[%emt 0:03:01]} 18. Nxf5 {[%emt 0:00:10]} exf5 {[%emt 0:00:01]} 19. O-O {[%emt 0:02:51]} Be6 {[%emt 0:02:55]} 20. Bd4 {[%emt 0:08:01]} Qa5 {[%emt 0:02:09]} 21. f4 {[%emt 0:04:12]} Kg8 {[%emt 0:02:59]} 22. Ra1 {[%emt 0:06:52]} Qc7 {[%emt 0:00:13]} 23. Ra3 {[%emt 0:00:40]} Nf8 {[%emt 0:04:36]} 24. Rfa1 {[%emt 0:04:08]} a5 {[%emt 0:02:10]} 25. Qd3 {[%emt 0:02:12]} Kh7 {[%emt 0:25:34]} 26. Qb5 {[%emt 0:05:19]} Bd7 {[%emt 0:14:03]} 27. Qb6 {[%emt 0:03:42]} Qxb6 {[%emt 0:00:01]} 28. cxb6 {[%emt 0:00:08]} a4 {[%emt 0:00:08]} 29. Bd1 {[%emt 0:00:10]} Ne6 {[%emt 0:00:30]} 30. Bxa4 {[%emt 0:00:30]} Bxa4 {[%emt 0:00:12]} 31. Rxa4 {[%emt 0:00:08]} Rab8 {[%emt 0:00:47]} 32. g3 {[%emt 0:05:01]} Rhd8 {[%emt 0:00:03]} 33. Kf2 {[%emt 0:00:45]} Rbc8 {[%emt 0:00:47]} 34. Ke3 {[%emt 0:01:43]} Rc6 {[%emt 0:00:37]} 35. Ra5 {[%emt 0:01:58]} g5 {[%emt 0:02:57]} 36. Rb5 {[%emt 0:03:40]} Nxd4 {[%emt 0:01:30]} 37. Kxd4 {[%emt 0:00:15]} Rc4+ {[%emt 0:00:04]} 38. Kd3 {[%emt 0:00:09]} gxf4 {[%emt 0:01:07]} 39. gxf4 {[%emt 0:03:12]} Rxf4 {[%emt 0:00:36]} 40. Ra7 {[%emt 0:00:00]} Rd7 {[%emt 0:00:00]} 41. Rc5 {[%emt 0:04:41]} Rc4 {[%emt 0:07:25]} 42. Rxd5 {[%emt 0:02:52]} Rxd5+ {[%emt 0:09:47]} 43. Kxc4 {[%emt 0:00:19]} Rd7 {[%emt 0:00:01]} 44. Ra1 {[%emt 0:03:23]} Re7 {[%emt 0:14:49]} 45. Kd5 {[%emt 0:06:28]} Re6 {[%emt 0:00:06]} 46. Rb1 {[%emt 0:02:22]} f4 {[%emt 0:00:42]} 47. Ke4 {[%emt 0:05:42]} Rc6 {[%emt 0:01:27]} 48. Kxf4 {[%emt 0:07:44]} Rxc3 {[%emt 0:01:06]} 49. Rd1 {[%emt 0:00:10]} Rb3 {[%emt 0:00:36]} 50. Rd6 {[%emt 0:01:29]} Kg7 {[%emt 0:00:11]} 51. h4 {[%emt 0:01:44]} h5 {[%emt 0:02:23]} 52. e6 {[%emt 0:02:39]} fxe6 {[%emt 0:00:16]} 53. Rxe6 {[%emt 0:00:06]} Rb5 {[%emt 0:01:04]} 54. Re7+ {[%emt 0:00:12]} Kf6 {[%emt 0:00:03]} 55. Rxb7 {[%emt 0:00:07]} Rb4+ {[%emt 0:00:00]} 56. Kg3 {[%emt 0:00:25]} Rb3+ {[%emt 0:00:03]} 57. Kf2 {[%emt 0:00:08]} Kf5 {[%emt 0:00:11]} 58. Rg7 {[%emt 0:01:51]} Rxb6 {[%emt 0:00:25]} 59. Rg5+ {[%emt 0:00:06]} Kf4 {[%emt 0:00:09]} 1/2-1/2

[Event "POL-chT 2 Liga 2019"]
[Site "Poronin"]
[Date "2019.09.10"]
[Round "4.5"]
[White "Gmaj, Krzysztof"]
[Black "Kowalczyk, Pawel"]
[Result "0-1"]
[ECO "B53"]
[WhiteElo "2120"]
[BlackElo "2294"]
[Annotator "RC"]
[PlyCount "294"]
[EventDate "2019.09.07"]
[EventType "team-tourn"]
[EventCountry "POL"]
[SourceTitle "playchess.com"]
[Source "ChessBase"]
[SourceQuality "1"]
[TimeControl "40/5400+30:1800+30"]

1. e4 {[%emt 0:00:00]} c5 {[%emt 0:00:00]} 2. Nf3 {[%emt 0:00:43]} d6 {[%emt 0:00:09]} 3. d4 {[%emt 0:00:06]} cxd4 {[%emt 0:00:04]} 4. Qxd4 {[%emt 0:00:05]} a6 {[%emt 0:01:58]} 5. c4 {[%emt 0:01:31]} Nf6 {[%emt 0:01:29]} 6. Nc3 {[%emt 0:03:55]} e6 {[%emt 0:01:51]} 7. Be2 {[%emt 0:01:26]} Be7 {[%emt 0:01:05]} 8. O-O {[%emt 0:00:51]} Nc6 {[%emt 0:04:29]} 9. Qd2 {[%emt 0:01:07]} O-O {[%emt 0:01:01]} 10. b3 {[%emt 0:00:33]} b6 {[%emt 0:01:03]} 11. Bb2 {[%emt 0:03:17]} Bb7 {[%emt 0:05:26]} 12. Rad1 {[%emt 0:04:00]} Qc7 {[%emt 0:02:51]} 13. Nd4 {[%emt 0:06:10]} Rfd8 {[%emt 0:01:41]} 14. Qe3 {[%emt 0:04:05]} Rac8 {[%emt 0:09:01]} 15. Kh1 {[%emt 0:07:59]} Nxd4 {[%emt 0:09:09]} 16. Qxd4 {[%emt 0:00:51]} Qc5 {[%emt 0:02:52]} 17. Qd3 {[%emt 0:03:12]} b5 {[%emt 0:04:44]} 18. Qg3 {[%emt 0:15:07]} bxc4 {[%emt 0:05:23]} 19. Bxc4 {[%emt 0:02:14]} Bf8 {[%emt 0:06:49]} 20. f3 {[%emt 0:04:45]} Qh5 {[%emt 0:00:02]} 21. Ne2 {[%emt 0:02:40]} Qg6 {[%emt 0:01:32]} 22. Qh3 {[%emt 0:03:02]} Qh5 {[%emt 0:04:31]} 23. Qg3 {[%emt 0:01:50]} Kh8 {[%emt 0:05:53]} 24. Nf4 {[%emt 0:02:02]} Qa5 {[%emt 0:00:19]} 25. Qh4 {[%emt 0:06:17]} Ne8 {[%emt 0:05:39]} 26. Bxe6 {[%emt 0:05:17]} fxe6 {[%emt 0:00:58]} 27. Nxe6 {[%emt 0:00:36]} Kg8 {[%emt 0:00:28]} 28. Nxf8 {[%emt 0:03:24]} Kxf8 {[%emt 0:00:02]} 29. Qxh7 {[%emt 0:00:33]} Qg5 {[%emt 0:03:09]} 30. Rf2 {[%emt 0:01:45]} Nf6 {[%emt 0:01:06]} 31. Qh3 {[%emt 0:03:55]} Kf7 {[%emt 0:00:14]} 32. Bxf6 {[%emt 0:01:07]} Qxf6 {[%emt 0:01:28]} 33. Rfd2 {[%emt 0:00:59]} Kg8 {[%emt 0:00:49]} 34. Qg3 {[%emt 0:00:18]} d5 {[%emt 0:00:06]} 35. exd5 {[%emt 0:05:04]} Rxd5 {[%emt 0:00:08]} 36. Rxd5 {[%emt 0:00:16]} Bxd5 {[%emt 0:00:02]} 37. h3 {[%emt 0:00:13]} Bf7 {[%emt 0:01:07]} 38. Rd2 {[%emt 0:02:41]} Rd8 {[%emt 0:00:29]} 39. Re2 {[%emt 0:00:56]} Rd1+ {[%emt 0:00:52]} 40. Kh2 {[%emt 0:00:00]} Qb6 {[%emt 0:00:00]} 41. Qe5 {[%emt 0:10:43]} Rd5 {[%emt 0:02:10]} 42. Qf4 {[%emt 0:01:36]} Qg6 {[%emt 0:00:55]} 43. Qb8+ {[%emt 0:00:47]} Kh7 {[%emt 0:00:22]} 44. Re4 {[%emt 0:00:44]} Qd6+ {[%emt 0:03:04]} 45. Qxd6 {[%emt 0:00:05]} Rxd6 {[%emt 0:00:03]} 46. Kg3 {[%emt 0:04:29]} Kg6 {[%emt 0:00:06]} 47. Re5 {[%emt 0:02:54]} Kf6 {[%emt 0:00:23]} 48. Rc5 {[%emt 0:00:09]} Be8 {[%emt 0:01:16]} 49. Rc2 {[%emt 0:02:35]} Bb5 {[%emt 0:00:10]} 50. Kf4 {[%emt 0:02:44]} Ke6 {[%emt 0:00:12]} 51. Ke3 {[%emt 0:00:50]} Rd3+ {[%emt 0:00:23]} 52. Ke4 {[%emt 0:01:03]} Rd1 {[%emt 0:00:06]} 53. Ke3 {[%emt 0:01:53]} g6 {[%emt 0:05:02]} 54. h4 {[%emt 0:00:36]} Rh1 {[%emt 0:00:48]} 55. g3 {[%emt 0:00:17]} Rd1 {[%emt 0:01:03]} 56. Kf4 {[%emt 0:03:45]} Kf6 {[%emt 0:02:37]} 57. g4 {[%emt 0:00:27]} Rd4+ {[%emt 0:00:28]} 58. Ke3 {[%emt 0:00:26]} Rd5 {[%emt 0:00:25]} 59. Kf4 {[%emt 0:00:48]} Bd7 {[%emt 0:00:41]} 60. Re2 {[%emt 0:01:28]} Rd4+ {[%emt 0:00:22]} 61. Ke3 {[%emt 0:00:38]} Rd6 {[%emt 0:00:14]} 62. Kf4 {[%emt 0:00:30]} Bc6 {[%emt 0:00:05]} 63. Rc2 {[%emt 0:00:36]} Kf7 {[%emt 0:01:26]} 64. Rc3 {[%emt 0:02:18]} Kf6 {[%emt 0:00:40]} 65. Rc2 {[%emt 0:00:31]} Bb5 {[%emt 0:00:07]} 66. Ke3 {[%emt 0:00:43]} Rd1 {[%emt 0:00:24]} 67. Kf4 {[%emt 0:00:36]} Rh1 {[%emt 0:00:06]} 68. a4 {[%emt 0:01:18]} Bd7 {[%emt 0:01:55]} 69. Rc7 {[%emt 0:00:37]} Rd1 {[%emt 0:00:02]} 70. Rb7 {[%emt 0:00:23]} Rd4+ {[%emt 0:00:14]} 71. Ke3 {[%emt 0:00:10]} Rd6 {[%emt 0:00:06]} 72. a5 {[%emt 0:01:05]} Rd5 {[%emt 0:05:20]} 73. Rb6+ {[%emt 0:00:09]} Kf7 {[%emt 0:00:08]} 74. Rxa6 {[%emt 0:00:14]} Rb5 {[%emt 0:00:02]} 75. Ra7 {[%emt 0:00:45]} Rxb3+ {[%emt 0:00:05]} 76. Kf4 {[%emt 0:00:06]} Rb4+ {[%emt 0:01:15]} 77. Kg5 {[%emt 0:00:13]} Rb5+ {[%emt 0:00:03]} 78. Kf4 {[%emt 0:01:39]} Ke7 {[%emt 0:00:08]} 79. Ra6 {[%emt 0:00:23]} Be8 {[%emt 0:01:16]} 80. Ra7+ {[%emt 0:00:06]} Kf8 {[%emt 0:01:52]} 81. Ra8 {[%emt 0:00:33]} Rc5 {[%emt 0:00:12]} 82. Ra7 {[%emt 0:00:26]} Rc4+ {[%emt 0:00:29]} 83. Kg5 {[%emt 0:00:06]} Rc5+ {[%emt 0:00:25]} 84. Kf4 {[%emt 0:00:21]} Bf7 {[%emt 0:01:16]} 85. Ra8+ {[%emt 0:00:09]} Kg7 {[%emt 0:00:05]} 86. Ra7 {[%emt 0:00:04]} Kf6 {[%emt 0:00:27]} 87. Ra6+ {[%emt 0:00:06]} Be6 {[%emt 0:00:06]} 88. Ra7 {[%emt 0:00:24]} Rc4+ {[%emt 0:00:12]} 89. Ke3 {[%emt 0:00:52]} Rb4 {[%emt 0:00:37]} 90. Ra6 {[%emt 0:00:16]} Ra4 {[%emt 0:01:27]} 91. f4 {[%emt 0:02:06]} Kf7 {[%emt 0:01:57]} 92. h5 {[%emt 0:00:42]} Bxg4 {[%emt 0:00:37]} 93. Rxg6 {[%emt 0:00:51]} Bxh5 {[%emt 0:00:06]} 94. Rg5 {[%emt 0:00:05]} Bg6 {[%emt 0:00:14]} 95. Re5 {[%emt 0:00:28]} Kf6 {[%emt 0:00:06]} 96. Kf3 {[%emt 0:00:10]} Bf5 {[%emt 0:00:17]} 97. Ke3 {[%emt 0:00:19]} Ra3+ {[%emt 0:00:06]} 98. Kf2 {[%emt 0:00:24]} Bg4 {[%emt 0:03:17]} 99. Kg2 {[%emt 0:02:00]} Rf3 {[%emt 0:00:14]} 100. Re4 {[%emt 0:00:21]} Ra3 {[%emt 0:01:26]} 101. Re5 {[%emt 0:00:05]} Bf3+ {[%emt 0:00:06]} 102. Kf2 {[%emt 0:01:19]} Bc6 {[%emt 0:00:09]} 103. Rc5 {[%emt 0:00:29]} Be4 {[%emt 0:00:08]} 104. Ke2 {[%emt 0:00:50]} Rf3 {[%emt 0:00:38]} 105. f5 {[%emt 0:01:09]} Ra3 {[%emt 0:00:06]} 106. Kd2 {[%emt 0:01:08]} Bxf5 {[%emt 0:00:08]} 107. Ke2 {[%emt 0:00:20]} Be4 {[%emt 0:00:12]} 108. Kd2 {[%emt 0:00:13]} Ke6 {[%emt 0:00:03]} 109. Rh5 {[%emt 0:00:35]} Kd6 {[%emt 0:00:13]} 110. Kc1 {[%emt 0:00:47]} Bd5 {[%emt 0:00:06]} 111. Kb2 {[%emt 0:00:07]} Rxa5 {[%emt 0:00:04]} 112. Rh3 {[%emt 0:00:30]} Ra2+ {[%emt 0:00:05]} 113. Kb1 {[%emt 0:00:08]} Rf2 {[%emt 0:00:03]} 114. Kc1 {[%emt 0:00:18]} Kc5 {[%emt 0:00:04]} 115. Kb1 {[%emt 0:00:10]} Kd4 {[%emt 0:00:05]} 116. Kc1 {[%emt 0:00:13]} Be4 {[%emt 0:00:06]} 117. Ra3 {[%emt 0:00:19]} Bd3 {[%emt 0:00:07]} 118. Ra4+ {[%emt 0:00:24]} Ke3 {[%emt 0:00:17]} 119. Ra8 {[%emt 0:00:44]} Rc2+ {[%emt 0:00:20]} 120. Kd1 {[%emt 0:00:07]} Rb2 {[%emt 0:00:01]} 121. Re8+ {[%emt 0:01:17]} Be4 {[%emt 0:00:02]} 122. Rc8 {[%emt 0:00:26]} Rh2 {[%emt 0:01:06]} 123. Kc1 {[%emt 0:00:13]} Rh1+ {[%emt 0:00:04]} 124. Kb2 {[%emt 0:00:06]} Bd3 {[%emt 0:00:49]} 125. Re8+ {[%emt 0:00:20]} Kd2 {[%emt 0:00:05]} 126. Rc8 {[%emt 0:00:28]} Rb1+ {[%emt 0:00:40]} 127. Ka2 {[%emt 0:00:06]} Rb5 {[%emt 0:00:19]} 128. Rc7 {[%emt 0:00:16]} Bc2 {[%emt 0:00:13]} 129. Rd7+ {[%emt 0:00:34]} Kc1 {[%emt 0:00:24]} 130. Ka3 {[%emt 0:00:19]} Rb3+ {[%emt 0:00:04]} 131. Ka2 {[%emt 0:00:03]} Rb4 {[%emt 0:00:42]} 132. Ra7 {[%emt 0:00:09]} Rb5 {[%emt 0:00:58]} 133. Ka3 {[%emt 0:00:23]} Rb1 {[%emt 0:00:05]} 134. Rc7 {[%emt 0:00:30]} Rb3+ {[%emt 0:01:07]} 135. Ka2 {[%emt 0:00:05]} Rb4 {[%emt 0:00:02]} 136. Ra7 {[%emt 0:00:09]} Rc4 {[%emt 0:00:08]} 137. Ra5 {[%emt 0:00:10]} Kd2 {[%emt 0:00:06]} 138. Ra7 {[%emt 0:00:50]} Kc3 {[%emt 0:00:07]} 139. Ra3+ {[%emt 0:00:23]} Kb4 {[%emt 0:00:12]} 140. Ra7 {[%emt 0:00:16]} Bb3+ {[%emt 0:00:06]} 141. Kb2 {[%emt 0:00:10]} Rc2+ {[%emt 0:00:09]} 142. Kb1 {[%emt 0:00:06]} Rf2 {[%emt 0:00:41]} 143. Rc7 {[%emt 0:01:30]} Bc4 {[%emt 0:00:05]} 144. Rg7 {[%emt 0:01:02]} Kc3 {[%emt 0:00:33]} 145. Rg3+ {[%emt 0:00:17]} Bd3+ {[%emt 0:00:06]} 146. Ka1 {[%emt 0:00:05]} Rf1+ {[%emt 0:00:28]} 147. Ka2 {[%emt 0:00:06]} Rf6 {[%emt 0:00:10]} 0-1

[Event "POL-chT 2 Liga 2019"]
[Site "Poronin"]
[Date "2019.09.10"]
[Round "4.6"]
[White "Starosta, Martyna"]
[Black "Kubicka, Anna"]
[Result "1-0"]
[ECO "B94"]
[WhiteElo "1814"]
[BlackElo "2225"]
[Annotator "NA"]
[PlyCount "111"]
[EventDate "2019.09.07"]
[EventType "team-tourn"]
[EventCountry "POL"]
[SourceTitle "playchess.com"]
[Source "ChessBase"]
[SourceQuality "1"]
[TimeControl "40/5400+30:1800+30"]

1. e4 {[%emt 0:00:00]} c5 {[%emt 0:00:00]} 2. Nf3 {[%emt 0:00:00]} d6 {[%emt 0:00:00]} 3. d4 {[%emt 0:00:00]} cxd4 {[%emt 0:00:00]} 4. Nxd4 {[%emt 0:00:00]} Nf6 {[%emt 0:00:00]} 5. Nc3 {[%emt 0:00:00]} a6 {[%emt 0:00:20]} 6. Bg5 {[%emt 0:00:05]} Nbd7 {[%emt 0:00:09]} 7. f4 {[%emt 0:00:15]} Qc7 {[%emt 0:00:16]} 8. Qf3 {[%emt 0:00:10]} h6 {[%emt 0:00:22]} 9. Bxf6 {[%emt 0:00:07]} Nxf6 {[%emt 0:00:08]} 10. f5 {[%emt 0:00:16]} Qc5 {[%emt 0:05:45]} 11. O-O-O {[%emt 0:00:12]} g5 {[%emt 0:00:13]} 12. e5 {[%emt 0:01:13]} Qxe5 {[%emt 0:00:33]} 13. g3 {[%emt 0:00:22]} h5 {[%emt 0:01:45]} 14. Kb1 {[%emt 0:00:49]} g4 {[%emt 0:01:49]} 15. Qf2 {[%emt 0:00:09]} Bh6 {[%emt 0:09:14]} 16. Re1 {[%emt 0:00:39]} Qc5 {[%emt 0:00:29]} 17. Bg2 {[%emt 0:01:50]} Bd7 {[%emt 0:13:25]} 18. Qe2 {[%emt 0:02:28]} O-O {[%emt 0:02:14]} 19. Nb3 {[%emt 0:03:41]} Qxf5 {[%emt 0:18:12]} 20. Rhf1 {[%emt 0:01:53]} Qg6 {[%emt 0:07:20]} 21. Bxb7 {[%emt 0:08:03]} Rab8 {[%emt 0:04:59]} 22. Bxa6 {[%emt 0:01:45]} e5 {[%emt 0:01:11]} 23. Rd1 {[%emt 0:04:23]} Ne8 {[%emt 0:04:16]} 24. Nd5 {[%emt 0:03:32]} Bg5 {[%emt 0:00:50]} 25. Bc4 {[%emt 0:03:39]} Kg7 {[%emt 0:02:14]} 26. Nc5 {[%emt 0:09:29]} Bc8 {[%emt 0:12:47]} 27. Nd3 {[%emt 0:07:17]} Kh6 {[%emt 0:05:47]} 28. Qf2 {[%emt 0:08:13]} Be6 {[%emt 0:01:34]} 29. Qa7 {[%emt 0:03:45]} Bxd5 {[%emt 0:00:23]} 30. Bxd5 {[%emt 0:00:19]} Nf6 {[%emt 0:00:16]} 31. Bb3 {[%emt 0:01:23]} Ne4 {[%emt 0:04:38]} 32. Qa5 {[%emt 0:04:04]} f5 {[%emt 0:00:58]} 33. Nf2 {[%emt 0:02:49]} Nxf2 {[%emt 0:02:26]} 34. Rxf2 {[%emt 0:00:09]} Be3 {[%emt 0:00:18]} 35. Re2 {[%emt 0:01:37]} f4 {[%emt 0:00:26]} 36. Qc7 {[%emt 0:01:12]} Rbd8 {[%emt 0:01:46]} 37. a4 {[%emt 0:04:16]} Rc8 {[%emt 0:00:44]} 38. Qd7 {[%emt 0:02:33]} Rcd8 {[%emt 0:00:22]} 39. Qc7 {[%emt 0:00:53]} Rc8 {[%emt 0:00:13]} 40. Qd7 {[%emt 0:00:00]} Rfd8 {[%emt 0:00:00]} 41. Qe7 {[%emt 0:03:08]} Re8 {[%emt 0:16:05]} 42. Qd7 {[%emt 0:00:46]} Rcd8 {[%emt 0:01:50]} 43. Qc7 {[%emt 0:00:57]} Qf6 {[%emt 0:01:47]} 44. c3 {[%emt 0:03:51]} Bc5 {[%emt 0:02:54]} 45. gxf4 {[%emt 0:02:50]} exf4 {[%emt 0:00:46]} 46. Rde1 {[%emt 0:02:07]} Rxe2 {[%emt 0:03:03]} 47. Rxe2 {[%emt 0:00:55]} Be3 {[%emt 0:01:12]} 48. Bc2 {[%emt 0:01:41]} Re8 {[%emt 0:02:17]} 49. Qh7+ {[%emt 0:03:01]} Kg5 {[%emt 0:00:33]} 50. Qd3 {[%emt 0:00:53]} Qe6 {[%emt 0:01:58]} 51. Re1 {[%emt 0:03:16]} f3 {[%emt 0:01:49]} 52. Rf1 {[%emt 0:01:44]} f2 {[%emt 0:01:32]} 53. Qh7 {[%emt 0:03:00]} Re7 {[%emt 0:01:24]} 54. Qd3 {[%emt 0:01:09]} Kh4 {[%emt 0:00:56]} 55. a5 {[%emt 0:02:35]} Qe5 {[%emt 0:00:49]} 56. a6 {[%emt 0:01:41]} 1-0

[Event "POL-chT 2 Liga 2019"]
[Site "Poronin"]
[Date "2019.09.10"]
[Round "4.8"]
[White "Lizak, Jakub"]
[Black "Mis, Mieszko"]
[Result "1/2-1/2"]
[ECO "A36"]
[WhiteElo "2236"]
[BlackElo "2320"]
[Annotator "NA"]
[PlyCount "93"]
[EventDate "2019.09.07"]
[EventType "team-tourn"]
[EventCountry "POL"]
[SourceTitle "playchess.com"]
[Source "ChessBase"]
[SourceQuality "1"]
[TimeControl "40/5400+30:1800+30"]

1. c4 {[%emt 0:00:00]} g6 {[%emt 0:02:22]} 2. g3 {[%emt 0:00:00]} Bg7 {[%emt 0:00:21]} 3. Bg2 {[%emt 0:00:00]} c5 {[%emt 0:03:12]} 4. Nc3 {[%emt 0:00:00]} Nc6 {[%emt 0:00:02]} 5. a3 {[%emt 0:00:00]} Nf6 {[%emt 0:03:32]} 6. Rb1 {[%emt 0:00:06]} a5 {[%emt 0:07:27]} 7. d3 {[%emt 0:03:12]} O-O {[%emt 0:01:22]} 8. Nf3 {[%emt 0:01:20]} d5 {[%emt 0:02:44]} 9. cxd5 {[%emt 0:03:40]} Nxd5 {[%emt 0:01:03]} 10. Bd2 {[%emt 0:06:12]} Nc7 {[%emt 0:05:26]} 11. Qc1 {[%emt 0:02:32]} b6 {[%emt 0:15:42]} 12. Bh6 {[%emt 0:00:37]} Bb7 {[%emt 0:01:38]} 13. h4 {[%emt 0:08:54]} Nd4 {[%emt 0:09:01]} 14. h5 {[%emt 0:03:55]} Nxf3+ {[%emt 0:01:47]} 15. Bxf3 {[%emt 0:00:05]} Bxf3 {[%emt 0:00:11]} 16. exf3 {[%emt 0:00:04]} Qxd3 {[%emt 0:03:27]} 17. Bxg7 {[%emt 0:09:10]} Kxg7 {[%emt 0:00:33]} 18. Rh4 {[%emt 0:01:03]} Kh8 {[%emt 0:14:20]} 19. Qh6 {[%emt 0:05:01]} Ne6 {[%emt 0:03:58]} 20. Rd1 {[%emt 0:01:24]} Qf5 {[%emt 0:01:37]} 21. Rd5 {[%emt 0:02:18]} Qf6 {[%emt 0:01:35]} 22. hxg6 {[%emt 0:04:58]} Qxg6 {[%emt 0:00:08]} 23. Rdh5 {[%emt 0:04:03]} Qxh6 {[%emt 0:01:27]} 24. Rxh6 {[%emt 0:00:06]} Rfd8 {[%emt 0:00:37]} 25. Rxh7+ {[%emt 0:01:08]} Kg8 {[%emt 0:00:01]} 26. R7h5 {[%emt 0:05:17]} Nf8 {[%emt 0:00:43]} 27. Nd5 {[%emt 0:04:12]} Ng6 {[%emt 0:02:51]} 28. Rg4 {[%emt 0:00:25]} Ra7 {[%emt 0:05:24]} 29. Nxb6 {[%emt 0:02:49]} Rd3 {[%emt 0:03:16]} 30. Ke2 {[%emt 0:01:06]} Rb3 {[%emt 0:00:53]} 31. Nc4 {[%emt 0:01:35]} Rc7 {[%emt 0:00:59]} 32. f4 {[%emt 0:01:11]} e6 {[%emt 0:01:26]} 33. f5 {[%emt 0:02:36]} exf5 {[%emt 0:00:03]} 34. Rxf5 {[%emt 0:00:08]} Re7+ {[%emt 0:02:14]} 35. Kd2 {[%emt 0:00:20]} a4 {[%emt 0:01:13]} 36. f4 {[%emt 0:08:20]} Re4 {[%emt 0:03:42]} 37. Rxc5 {[%emt 0:00:55]} Kf8 {[%emt 0:00:02]} 38. Rgg5 {[%emt 0:01:11]} Ne7 {[%emt 0:00:36]} 39. Rc7 {[%emt 0:05:24]} f6 {[%emt 0:01:32]} 40. Ra5 {[%emt 0:00:00]} Rxg3 {[%emt 0:00:00]} 41. Ra8+ {[%emt 0:01:11]} Kg7 {[%emt 0:00:58]} 42. Re8 {[%emt 0:00:56]} Rg2+ {[%emt 0:02:25]} 43. Kd3 {[%emt 0:00:31]} Rge2 {[%emt 0:00:02]} 44. Nd6 {[%emt 0:05:27]} R4e3+ {[%emt 0:01:05]} 45. Kd4 {[%emt 0:02:17]} Kg6 {[%emt 0:01:19]} 46. Ra8 {[%emt 0:04:16]} Re6 {[%emt 0:05:30]} 47. Nc4 {[%emt 0:03:33]} 1/2-1/2

[Event "POL-chT 2 Liga 2019"]
[Site "Poronin"]
[Date "2019.09.10"]
[Round "4.10"]
[White "Gola, Karol"]
[Black "Mika, Tomasz"]
[Result "0-1"]
[ECO "C01"]
[WhiteElo "2203"]
[BlackElo "2136"]
[Annotator "NA"]
[PlyCount "78"]
[EventDate "2019.09.07"]
[EventType "team-tourn"]
[EventCountry "POL"]
[SourceTitle "playchess.com"]
[Source "ChessBase"]
[SourceQuality "1"]
[TimeControl "40/5400+30:1800+30"]

1. e4 {[%emt 0:00:00]} e6 {[%emt 0:00:00]} 2. d4 {[%emt 0:00:00]} d5 {[%emt 0:00:00]} 3. exd5 {[%emt 0:00:00]} exd5 {[%emt 0:00:00]} 4. Nf3 {[%emt 0:00:00]} Bd6 {[%emt 0:00:09]} 5. c4 {[%emt 0:00:03]} dxc4 {[%emt 0:05:03]} 6. Bxc4 {[%emt 0:00:07]} Nf6 {[%emt 0:00:59]} 7. O-O {[%emt 0:02:19]} O-O {[%emt 0:00:06]} 8. Nc3 {[%emt 0:00:41]} Nbd7 {[%emt 0:02:27]} 9. Bg5 {[%emt 0:02:12]} c6 {[%emt 0:05:26]} 10. Re1 {[%emt 0:12:12]} Nb6 {[%emt 0:06:26]} 11. Bb3 {[%emt 0:01:24]} Bg4 {[%emt 0:09:45]} 12. h3 {[%emt 0:01:59]} Bh5 {[%emt 0:01:36]} 13. g4 {[%emt 0:00:50]} Bg6 {[%emt 0:00:02]} 14. Ne5 {[%emt 0:02:54]} Re8 {[%emt 0:18:22]} 15. f4 {[%emt 0:10:54]} c5 {[%emt 0:01:17]} 16. f5 {[%emt 0:02:13]} cxd4 {[%emt 0:00:56]} 17. fxg6 {[%emt 0:12:20]} Rxe5 {[%emt 0:00:56]} 18. Bxf7+ {[%emt 0:00:16]} Kh8 {[%emt 0:02:08]} 19. Rxe5 {[%emt 0:14:46]} Bxe5 {[%emt 0:00:21]} 20. Qe1 {[%emt 0:02:26]} Qd6 {[%emt 0:07:39]} 21. Ne4 {[%emt 0:03:20]} Nxe4 {[%emt 0:02:26]} 22. Qxe4 {[%emt 0:00:27]} Rf8 {[%emt 0:10:11]} 23. Qxb7 {[%emt 0:15:07]} d3 {[%emt 0:05:28]} 24. Qe4 {[%emt 0:01:01]} Bxb2 {[%emt 0:10:01]} 25. Rd1 {[%emt 0:02:23]} Qg3+ {[%emt 0:01:39]} 26. Qg2 {[%emt 0:00:42]} Bd4+ {[%emt 0:00:02]} 27. Kh1 {[%emt 0:00:30]} Qe5 {[%emt 0:00:10]} 28. Bh4 {[%emt 0:04:29]} hxg6 {[%emt 0:02:31]} 29. Bxg6 {[%emt 0:00:05]} Nc4 {[%emt 0:02:35]} 30. Qe4 {[%emt 0:03:24]} Qxe4+ {[%emt 0:01:07]} 31. Bxe4 {[%emt 0:00:04]} Nb2 {[%emt 0:02:10]} 32. Rd2 {[%emt 0:05:36]} Bc3 {[%emt 0:00:29]} 33. Rf2 {[%emt 0:01:00]} Rxf2 {[%emt 0:00:06]} 34. Bxf2 {[%emt 0:00:05]} d2 {[%emt 0:00:06]} 35. Bc2 {[%emt 0:00:07]} a5 {[%emt 0:00:43]} 36. Kg2 {[%emt 0:00:21]} d1=Q {[%emt 0:00:08]} 37. Bxd1 {[%emt 0:00:02]} Nxd1 {[%emt 0:00:06]} 38. Bb6 {[%emt 0:00:09]} a4 {[%emt 0:00:56]} 39. Kf3 {[%emt 0:00:38]} Bb4 {[%emt 0:00:29]} 0-1